fUSD/lending_fUSD_20251110
["ID","MTS","AMOUNT","RATE_DAILY","PERIOD"]
[393515429,1762745439223,-150.0,0.00037601,2]
[393515430,1762745439235,-150.82381501,0.00037601,2]
[393515431,1762745439247,-152.10305033,0.00037601,2]
[393515432,1762745439256,-151.03270437,0.00037601,2]
[393515433,1762745439275,-152.89330351,0.00037601,2]
[393515434,1762745439286,-150.35660687,0.00037601,2]
[393515435,1762745439296,-154.23035244,0.00037601,2]
[393515436,1762745439306,-158.23579421,0.00037601,2]
[393515437,1762745439317,-253.03671545,0.00037601,2]
[393515438,1762745439326,-150.0,0.00037601,2]
[393515439,1762745439336,-151.47679804,0.00037601,2]
[393515440,1762745439346,-153.45223361,0.00037601,2]
[393515441,1762745439356,-150.85788348,0.00037601,2]
[393515442,1762745439366,-152.17920908,0.00037601,2]
[393515443,1762745439375,-150.65108684,0.00037601,2]
[393515444,1762745439385,-150.0,0.00037601,2]
[393515445,1762745439395,-150.0,0.00037601,2]
[393515446,1762745439405,-151.19039156,0.00037601,2]
[393515447,1762745439415,-152.34443913,0.00037601,2]
[393515448,1762745439425,-150.0,0.00037601,2]
[393515449,1762745439436,-150.0,0.00037601,2]
[393515450,1762745439447,-150.0,0.00037601,2]
[393515451,1762745439457,-150.0,0.00037601,2]
[393515452,1762745439467,-500.0,0.00037601,2]
[393515453,1762745439477,-150.0,0.00037601,2]
[393515454,1762745439487,-500.0,0.00037601,2]
[393515455,1762745439497,-150.0,0.00037601,2]
[393515456,1762745439507,-150.0,0.00037601,2]
[393515457,1762745439516,-150.0,0.00037601,2]
[393515458,1762745439526,-150.0,0.00037601,2]
[393515459,1762745439536,-150.0,0.00037601,2]
[393515460,1762745439547,-150.0,0.00037601,2]
[393515461,1762745439559,-150.0,0.00037601,2]
[393515462,1762745439568,-150.0,0.00037601,2]
[393515463,1762745439578,-150.0,0.00037601,2]
[393515464,1762745439587,-150.8076834,0.00037601,2]
[393515465,1762745439597,-150.0,0.00037601,2]
[393515466,1762745439607,-152.83278278,0.00037601,2]
[393515467,1762745439617,-150.98527005,0.00037601,2]
[393515468,1762745439627,-162.88369193,0.00037601,2]
[393515469,1762745439637,-150.60797679,0.00037601,2]
[393515470,1762745439647,-150.0,0.00037601,2]
[393515471,1762745439656,-150.54584448,0.00037601,2]
[393515472,1762745439666,-512.0988622,0.00037646,7]
[393515473,1762745439675,-500.0,0.00037646,7]
[393515474,1762745439685,-500.0,0.00037646,7]
[393515475,1762745439695,-880.37,0.00037646,5]
[393515476,1762745439704,-671.0,0.00037665,2]
[393515477,1762745439713,-2000.0,0.00037716,5]
[393515478,1762745439723,-1519.50878084,0.00037726,2]
[393515479,1762745439733,-159.9155242,0.00037727,2]
[393515480,1762745439743,-150.0,0.00037738,2]
[393515481,1762745439753,-150.0,0.00037738,2]
[393515482,1762745439763,-150.0,0.00037738,2]
[393515483,1762745439772,-150.27949849,0.00037738,2]
[393515484,1762745439781,-152.74124237,0.00037738,2]
[393515485,1762745439791,-150.0,0.00037738,2]
[393515486,1762745439801,-150.0,0.00037738,2]
[393515487,1762745439811,-150.0,0.00037738,2]
[393515488,1762745439821,-152.81423976,0.00037738,2]
[393515489,1762745439831,-505.24816507,0.00037738,2]
[393515490,1762745439841,-150.0,0.00037738,2]
[393515492,1762745440022,-500.0,0.00037738,2]
[393515493,1762745440033,-150.0,0.00037738,2]
[393515494,1762745440044,-150.0,0.00037738,2]
[393515495,1762745440053,-150.0,0.00037738,2]
[393515496,1762745440062,-150.0,0.00037738,2]
[393515497,1762745440074,-150.0,0.00037738,2]
[393515498,1762745440083,-150.0,0.00037738,2]
[393515499,1762745440093,-671.0,0.00037786,7]
[393515500,1762745440102,-893.85465609,0.00037863,2]
[393515501,1762745440111,-297.891577,0.00037865,31]
[393515502,1762745440120,-13770.36310159,0.00037865,4]
[393515503,1762745440133,-7241.53299183,0.00037865,4]
[393515504,1762745440144,-4833.73937308,0.00037865,4]
[393515505,1762745440157,-207.13508711,0.00037875,2]
[393515506,1762745440166,-202.12770534,0.00037875,2]
[393515507,1762745440176,-200.0,0.00037875,2]
[393515508,1762745440185,-226.80915622,0.00037875,2]
[393515509,1762745440195,-202.50493855,0.00037875,2]
[393515510,1762745440205,-150.0,0.00037875,2]
[393515511,1762745440214,-200.0,0.00037875,2]
[393515512,1762745440224,-338.0,0.00037875,2]
[393515513,1762745440233,-252.54258336,0.00037875,2]
[393515514,1762745440243,-150.0,0.00037875,2]
[393515515,1762745440254,-150.0,0.00037875,2]
[393515516,1762745440264,-150.0,0.00037875,2]
[393515517,1762745440273,-202.19828309,0.00037875,2]
[393515518,1762745440283,-204.97586592,0.00037875,2]
[393515519,1762745440293,-151.0,0.00037875,31]
[393515520,1762745440302,-153.372042,0.00037875,31]
[393515521,1762745440311,-153.64674,0.00037875,31]
[393515522,1762745440321,-168.0,0.00037885,2]
[393515523,1762745440330,-219.67704,0.0003793,2]
[393515524,1762745440339,-2075.2580026,0.00037971,2]
[393515525,1762745440348,-722.27,0.00037975,30]
[393515526,1762745440357,-722.27,0.00037975,30]
[393515527,1762745440367,-722.27,0.00037975,30]
[393515528,1762745440377,-722.27,0.00037975,30]
[393515529,1762745440386,-151.84109,0.00037989,31]
[393515530,1762745440395,-509.06504926,0.00037999,120]
[393515531,1762745440404,-513.25695741,0.00037999,120]
[393515532,1762745440414,-506.79595996,0.00037999,120]
[393515533,1762745440423,-500.0,0.00037999,7]
[393515534,1762745440432,-501.89874428,0.00037999,30]
[393515535,1762745440441,-500.0,0.00037999,120]
[393515536,1762745440450,-500.0,0.00037999,120]
[393515537,1762745440459,-500.0,0.00037999,120]
[393515538,1762745440468,-500.0,0.00037999,120]
[393515539,1762745440478,-500.0,0.00037999,30]
[393515540,1762745440487,-500.0,0.00037999,120]
[393515541,1762745440496,-500.0,0.00037999,120]
[393515542,1762745440505,-500.0,0.00037999,120]
[393515543,1762745440514,-160.0,0.00038,31]
[393515544,1762745440523,-530.10132996,0.00038004,12]
[393515545,1762745440532,-200.0,0.00038008,10]
[393515546,1762745440542,-262.10169917,0.00038012,2]
[393515547,1762745440551,-150.0,0.00038012,2]
[393515548,1762745440561,-150.0,0.00038012,2]
[393515549,1762745440570,-150.0,0.00038012,2]
[393515550,1762745440580,-168.0,0.00038028,2]
[393515551,1762745440590,-1519.50878084,0.00038087,2]
[393515552,1762745440599,-159.9155242,0.00038087,2]
[393515553,1762745440608,-22919.1097,0.00038094,4]
[393515554,1762745440618,-500.0,0.000381,5]
[393515555,1762745440628,-1597.0,0.00038104,2]
[393515556,1762745440638,-820.0,0.00038104,2]
[393515557,1762745440647,-813.0,0.00038104,2]
[393515558,1762745440657,-1274.0,0.00038104,2]
[393515559,1762745440667,-151.0,0.00038104,10]
[393515560,1762745440677,-1206.555,0.00038104,2]
[393515561,1762745440687,-906.0,0.00038104,2]
[393515562,1762745440696,-608.0,0.00038104,2]
[393515563,1762745440707,-574.0,0.00038104,2]
[393515564,1762745440716,-530.10132995,0.0003813,13]
[393515565,1762745440726,-179.06505433,0.00038149,2]
[393515566,1762745440735,-150.0,0.00038149,2]
[393515567,1762745440745,-150.0,0.00038149,2]
[393515568,1762745440754,-151.0,0.0003819,31]
[393515570,1762745440763,-722.27,0.00038249,30]
[393515572,1762745440772,-722.27,0.00038249,30]
[393515574,1762745440781,-530.10132995,0.00038256,13]
[393515577,1762745440790,-409.60534912,0.00038264,5]
[393515579,1762745440800,-1099.16969862,0.00038268,10]
[393515581,1762745440809,-1099.16969855,0.00038268,10]
[393515583,1762745440818,-1099.16969855,0.00038268,10]
[393515585,1762745440828,-183.41030229,0.00038273,11]
[393515587,1762745440837,-181.06,0.00038285,2]
[393515589,1762745440847,-250.0,0.00038286,2]
[393515591,1762745440856,-250.0,0.00038286,2]
[393515593,1762745440865,-56.60194275,0.0003829,7]
[393515601,1762745440935,-741.41345186,0.0003829,7]
[393515603,1762745440944,-8.32848907,0.00038292,2]
[393515606,1762745440956,-2737.53953495,0.00038292,2]
[393515608,1762745440968,-1875.05002448,0.00038292,2]
[393515610,1762745440977,-160.0,0.000383,120]
[393515612,1762745440986,-2773.30307279,0.00038306,4]
[393515641,1762745441303,-2142.0,0.00038104,2]
[393515642,1762745441313,-23072.33239371,0.00038306,4]
[393515643,1762745441322,-22919.1097,0.00038306,4]
[393515644,1762745441331,-286.63320609,0.00038314,2]
[393515645,1762745441340,-150.0,0.00038316,30]
[393515646,1762745441349,-183.9104939,0.00038316,30]
[393515647,1762745441358,-150.0,0.00038316,30]
[393515648,1762745441368,-508.53510965,0.00038316,30]
[393515649,1762745441377,-150.0,0.00038316,30]
[393515650,1762745441386,-347.96879646,0.00038316,30]
[393515651,1762745441395,-151.0,0.00038316,31]
[393515652,1762745441404,-151.0,0.00038325,31]
[393515653,1762745441413,-25845.6354665,0.00038326,4]
[393515654,1762745441423,-22919.1097,0.00038326,4]
[393515655,1762745441432,-477.21,0.00038329,2]
[393515656,1762745441441,-292.64,0.00038329,2]
[393515657,1762745441450,-181.04,0.0003833,2]
[393515658,1762745441459,-500.0,0.00038335,7]
[393515659,1762745441468,-500.0,0.00038335,120]
[393515660,1762745441477,-595.05190118,0.00038335,120]
[393515661,1762745441486,-180.18288668,0.00038335,120]
[393515662,1762745441495,-500.0,0.00038335,30]
[393515663,1762745441504,-610.44819336,0.00038335,120]
[393515664,1762745441513,-488.84961451,0.00038335,120]
[393515665,1762745441522,-500.0,0.00038335,120]
[393515666,1762745441531,-51691.2709331,0.00038336,4]
[393515667,1762745441540,-45838.2194001,0.00038336,4]
[393515668,1762745441550,-251.801325,0.00038336,31]
[393515669,1762745441559,-363.25982484,0.00038345,2]
[393515670,1762745441568,-77536.9063996,0.00038346,4]
[393515671,1762745441577,-68757.3291001,0.00038346,4]
[393515672,1762745441586,-22919.1097,0.00038346,4]
[393515673,1762745441595,-500.0,0.00038355,7]
[393515674,1762745441604,-500.0,0.00038355,120]
[393515675,1762745441614,-595.08766829,0.00038355,30]
[393515676,1762745441623,-1999.0,0.00038355,120]
[393515677,1762745441632,-500.0,0.00038355,120]
[393515678,1762745441642,-1000.0,0.00038356,2]
[393515679,1762745441651,-1000.0,0.00038356,2]
[393515680,1762745441660,-1000.0,0.00038356,2]
[393515681,1762745441669,-1000.0,0.00038356,2]
[393515682,1762745441678,-1000.0,0.00038356,2]
[393515683,1762745441687,-1000.0,0.00038356,2]
[393515684,1762745441696,-1000.0,0.00038356,2]
[393515685,1762745441706,-1000.0,0.00038356,2]
[393515686,1762745441715,-1000.0,0.00038356,2]
[393515687,1762745441724,-1000.0,0.00038356,2]
[393515688,1762745441733,-1000.0,0.00038356,2]
[393515689,1762745441742,-1000.0,0.00038356,2]
[393515690,1762745441751,-1000.0,0.00038356,2]
[393515691,1762745441760,-1016.29312137,0.00038356,2]
[393515692,1762745441769,-279.15464982,0.00038356,15]
[393515693,1762745441779,-500.0,0.00038356,2]
[393515694,1762745441788,-500.0,0.00038356,2]
[393515695,1762745441797,-500.0,0.00038356,2]
[393515696,1762745441806,-500.0,0.00038356,2]
[393515697,1762745441815,-500.0,0.00038356,2]
[393515698,1762745441825,-500.0,0.00038356,2]
[393515699,1762745441834,-500.0,0.00038356,2]
[393515700,1762745441843,-500.0,0.00038356,2]
[393515701,1762745441852,-500.0,0.00038356,2]
[393515702,1762745441862,-500.0,0.00038356,2]
[393515703,1762745441871,-500.0,0.00038356,2]
[393515704,1762745441880,-500.0,0.00038356,2]
[393515705,1762745441891,-309.88607826,0.00038356,2]
[393515706,1762745441902,-1290.1,0.00038356,2]
[393515707,1762745441912,-1290.1,0.00038356,2]
[393515708,1762745441922,-1290.1,0.00038356,2]
[393515709,1762745441931,-1290.1,0.00038356,2]
[393515710,1762745441940,-1290.1,0.00038356,2]
[393515711,1762745441950,-1290.1,0.00038356,2]
[393515712,1762745441959,-1290.1,0.00038356,2]
[393515713,1762745441968,-1290.1,0.00038356,2]
[393515714,1762745441977,-1290.1,0.00038356,2]
[393515715,1762745441987,-1290.1,0.00038356,2]
[393515716,1762745441996,-1290.1,0.00038356,2]
[393515717,1762745442005,-1290.1,0.00038356,2]
[393515718,1762745442014,-1290.1,0.00038356,2]
[393515719,1762745442024,-1290.1,0.00038356,2]
[393515720,1762745442033,-1290.1,0.00038356,2]
[393515721,1762745442043,-1290.1,0.00038356,2]
[393515722,1762745442052,-1290.1,0.00038356,2]
[393515723,1762745442061,-1290.1,0.00038356,2]
[393515724,1762745442070,-1290.1,0.00038356,2]
[393515725,1762745442081,-1290.1,0.00038356,2]
[393515726,1762745442090,-1290.1,0.00038356,2]
[393515727,1762745442102,-1047.92433748,0.00038356,2]
[393515728,1762745442115,-242.17566252,0.00038356,2]
[393515729,1762745442124,-1290.1,0.00038356,2]
[393515730,1762745442133,-1290.30713708,0.00038356,2]
[393515731,1762745442142,-504.30378659,0.00038356,10]
[393515732,1762745442151,-500.0,0.00038356,2]
[393515733,1762745442163,-500.0,0.00038356,2]
[393515734,1762745442174,-500.0,0.00038356,2]
[393515735,1762745442183,-500.0,0.00038356,2]
[393515736,1762745442193,-500.0,0.00038356,2]
[393515737,1762745442204,-500.0,0.00038356,2]
[393515738,1762745442213,-500.0,0.00038356,2]
[393515739,1762745442222,-500.0,0.00038356,2]
[393515740,1762745442371,-500.0,0.00038356,2]
[393515741,1762745442388,-500.0,0.00038356,2]
[393515742,1762745442398,-500.0,0.00038356,2]
[393515743,1762745442407,-500.0,0.00038356,2]
[393515744,1762745442416,-500.0,0.00038356,2]
[393515745,1762745442426,-500.0,0.00038356,2]
[393515746,1762745442435,-500.0,0.00038356,2]
[393515747,1762745442444,-500.0,0.00038356,2]
[393515748,1762745442453,-500.0,0.00038356,2]
[393515749,1762745442462,-500.0,0.00038356,2]
[393515750,1762745442472,-500.0,0.00038356,2]
[393515751,1762745442481,-500.0,0.00038356,2]
[393515752,1762745442491,-500.0,0.00038356,2]
[393515753,1762745442500,-500.0,0.00038356,2]
[393515754,1762745442509,-500.0,0.00038356,2]
[393515755,1762745442519,-500.0,0.00038356,2]
[393515756,1762745442528,-500.0,0.00038356,2]
[393515757,1762745442538,-500.0,0.00038356,2]
[393515758,1762745442548,-195.70617404,0.00038356,2]
[393515759,1762745442557,-3129.82,0.00038356,2]
[393515760,1762745442567,-3129.82,0.00038356,2]
[393515761,1762745442576,-3129.82,0.00038356,2]
[393515762,1762745442585,-3129.82,0.00038356,2]
[393515763,1762745442595,-3129.82,0.00038356,2]
[393515764,1762745442604,-3129.82,0.00038356,2]
[393515765,1762745442614,-3129.82,0.00038356,2]
[393515766,1762745442623,-3129.82,0.00038356,2]
[393515767,1762745442633,-3129.82,0.00038356,2]
[393515768,1762745442642,-3129.82,0.00038356,2]
[393515769,1762745442651,-3129.82,0.00038356,2]
[393515770,1762745442665,-3129.82,0.00038356,2]
[393515771,1762745442675,-3129.82,0.00038356,2]
[393515772,1762745442684,-3129.82,0.00038356,2]
[393515773,1762745442694,-3129.82,0.00038356,2]
[393515774,1762745442704,-3129.82,0.00038356,2]
[393515775,1762745442713,-3129.82,0.00038356,2]
[393515776,1762745442723,-2870.46723977,0.00038356,2]
[393515782,1762745443464,-259.35276023,0.00038356,2]
[393515783,1762745443473,-361.09828219,0.00038356,2]
[393515788,1762745446395,-1320.709,0.00037978,2]
[393515789,1762745446404,-1198.17604,0.00038356,2]
[393515790,1762745446415,-347.39063812,0.00038356,2]
[393515802,1762746120760,173.3,0.00013699,2]
[393515804,1762746342263,-301.20187829,0.0002009,2]
[393515805,1762746344921,-151.11951963,0.0002009,2]
[393515807,1762746406221,-173.3,0.00020187,2]
[393515808,1762746406243,-161.45167711,0.0002019,3]
[393515809,1762746406264,-268.73828393,0.00022206,2]
[393515810,1762746556071,-182.80940069,0.00022206,2]
[393515811,1762746556090,-1006.31,0.00025,2]
[393515812,1762746556110,-1006.31,0.000255,2]
[393515813,1762746556130,-173.3,0.00026676,2]
[393515814,1762746561966,155.10328179,0.00026576,2]
[393515819,1762746632431,-155.10328177,0.00031051,2]
[393515820,1762746632441,-197.47630251,0.00032898,2]
[393515821,1762746632450,-173.3,0.00033165,2]
[393515822,1762746632459,-279.76441572,0.00033913,2]
[393515823,1762746632665,-666.7649606,0.00033913,2]
[393515824,1762746632724,-482.65062368,0.00033913,2]
[393515825,1762746632734,-250.0,0.00033915,2]
[393515826,1762746632743,-150.0,0.00033951,2]
[393515827,1762746632752,-166.09,0.00033955,2]
[393515828,1762746632761,-1385.58667729,0.00034156,120]
[393515829,1762746632771,-422.5892517,0.00034156,120]
[393515831,1762746632780,-1600.0,0.00034288,3]
[393515832,1762746632789,-512.19986873,0.00034289,7]
[393515834,1762746632799,-530.80145772,0.00034289,7]
[393515836,1762746632808,-692.0,0.00034291,2]
[393515838,1762746632817,-400.0,0.00034339,3]
[393515840,1762746632827,-5000.0,0.0003434,2]
[393515843,1762746632836,-185.5362,0.00034591,2]
[393515845,1762746632848,-1000.0,0.00034655,2]
[393515847,1762746632858,-189.01,0.00034691,2]
[393515849,1762746632868,-692.0,0.00034731,7]
[393515851,1762746632877,-541.7,0.00034781,30]
[393515853,1762746632887,-541.7,0.00034781,30]
[393515856,1762746632896,-541.7,0.00034781,30]
[393515859,1762746632906,-541.7,0.00034781,30]
[393515862,1762746632916,-736.09,0.00034799,2]
[393515865,1762746632926,-541.7,0.00035055,30]
[393515868,1762746632937,-541.7,0.00035055,30]
[393515871,1762746632946,-608.0,0.00035266,7]
[393515874,1762746632957,-608.0,0.00035306,120]
[393515876,1762746632967,-318.90917256,0.00035329,30]
[393515880,1762746632979,-222.79082744,0.00035329,30]
[393515883,1762746632990,-541.7,0.00035329,30]
[393515885,1762746633000,-218.6,0.00035411,2]
[393515887,1762746633011,-155.10328177,0.00035525,2]
[393515889,1762746633021,-1768.25,0.00035526,42]
[393515891,1762746633031,-1655.2136,0.00035526,2]
[393515893,1762746633041,-541.7,0.00035603,30]
[393515895,1762746633050,-541.7,0.00035603,30]
[393515897,1762746633060,-151.0,0.00035605,2]
[393515899,1762746633070,-151.0,0.00035605,2]
[393515901,1762746633080,-151.0,0.00035605,2]
[393515903,1762746633089,-151.0,0.00035605,2]
[393515905,1762746633103,-151.0,0.00035605,2]
[393515907,1762746633113,-151.0,0.00035605,2]
[393515909,1762746633123,-151.0,0.00035605,2]
[393515911,1762746633132,-151.0,0.00035605,2]
[393515913,1762746633143,-151.0,0.00035605,2]
[393515915,1762746633153,-151.0,0.00035605,2]
[393515917,1762746633164,-151.0,0.00035605,2]
[393515919,1762746633173,-151.0,0.00035605,2]
[393515921,1762746633184,-151.0,0.00035605,2]
[393515923,1762746633193,-151.0,0.00035605,2]
[393515925,1762746633203,-151.0,0.00035605,2]
[393515927,1762746633213,-151.0,0.00035605,2]
[393515929,1762746633223,-151.0,0.00035605,2]
[393515931,1762746633233,-151.0,0.00035605,2]
[393515933,1762746633243,-239.82142476,0.00035605,2]
[393515935,1762746633253,-250.39,0.00035624,14]
[393515937,1762746633262,-348.04644137,0.00035625,15]
[393515939,1762746633272,-188.60725773,0.00035625,15]
[393515941,1762746633281,-500.0,0.00035625,15]
[393515943,1762746633291,-306.75079858,0.00035625,15]
[393515945,1762746633300,-26791.34867926,0.00035626,2]
[393515947,1762746633312,-658.19883048,0.00035626,2]
[393515949,1762746633322,-2100.41727087,0.00035626,2]
[393515952,1762746633334,-344.23181348,0.00035626,2]
[393515954,1762746633347,-453.45242596,0.00035626,2]
[393516241,1762746638301,-1835.979331,0.00032733,2]
[393516242,1762746638311,-500.0,0.00035053,2]
[393516243,1762746638321,-218.18529602,0.00035053,7]
[393516244,1762746638333,-165.4945668,0.00035053,7]
[393516245,1762746638343,-500.0,0.00035053,7]
[393516246,1762746638353,-229.91740568,0.00035053,7]
[393516247,1762746638363,-500.0,0.00035053,7]
[393516248,1762746638373,-300.23018454,0.00035053,2]
[393516249,1762746638383,-500.0,0.00035053,7]
[393516250,1762746638394,-500.0,0.00035053,7]
[393516251,1762746638407,-500.0,0.00035053,7]
[393516252,1762746638418,-500.0,0.00035053,7]
[393516253,1762746638427,-500.0,0.00035053,7]
[393516254,1762746638436,-500.0,0.00035053,7]
[393516255,1762746638446,-500.0,0.00035053,7]
[393516256,1762746638456,-500.0,0.00035053,7]
[393516257,1762746638466,-500.0,0.00035053,7]
[393516258,1762746638476,-500.0,0.00035053,7]
[393516259,1762746638486,-500.0,0.00035053,7]
[393516260,1762746638496,-500.0,0.00035053,7]
[393516261,1762746638505,-500.0,0.00035053,7]
[393516262,1762746638516,-500.0,0.00035053,7]
[393516263,1762746638526,-500.0,0.00035053,7]
[393516264,1762746638536,-500.0,0.00035053,7]
[393516265,1762746638549,-620.78323402,0.00035053,7]
[393516266,1762746638559,-500.0,0.00035053,7]
[393516268,1762746638568,-500.0,0.00035053,7]
[393516270,1762746638577,-500.0,0.00035053,7]
[393516272,1762746638587,-500.0,0.00035053,7]
[393516274,1762746638597,-500.0,0.00035053,7]
[393516276,1762746638607,-500.0,0.00035053,7]
[393516278,1762746638616,-500.0,0.00035053,7]
[393516280,1762746638628,-500.0,0.00035053,7]
[393516282,1762746638638,-500.0,0.00035053,7]
[393516284,1762746638647,-500.0,0.00035053,7]
[393516286,1762746638656,-500.0,0.00035053,7]
[393516288,1762746638666,-500.0,0.00035053,7]
[393516290,1762746638676,-500.0,0.00035053,7]
[393516292,1762746638685,-56769.63539066,0.00035626,2]
[393516303,1762746638771,-301.0,0.00035626,2]
[393516305,1762746638784,-1524.15,0.00035626,2]
[393516364,1762746641051,-726.58,0.00035626,2]
[393516365,1762746641067,-1087.5,0.00035626,2]
[393516366,1762746641080,-4302.87,0.00035626,2]
[393516384,1762746643472,-50871.87378929,0.00035626,2]
[393516385,1762746643482,-178.37451075,0.00035626,2]
[393516386,1762746643491,-500.0,0.00035673,5]
[393516387,1762746643501,-500.0,0.00035673,5]
[393516388,1762746643511,-501.94551867,0.00035673,5]
[393516389,1762746643521,-500.0,0.00035673,5]
[393516390,1762746643530,-500.91506989,0.00035673,5]
[393516391,1762746643539,-226.0,0.00035863,7]
[393516392,1762746643552,-608.0,0.00035864,2]
[393516393,1762746643561,-541.7,0.00035877,30]
[393516394,1762746643570,-541.7,0.00035877,30]
[393516395,1762746643579,-250.39,0.00035898,14]
[393516396,1762746643589,-193.59019654,0.00035903,15]
[393516397,1762746643598,-159.9155242,0.00035903,2]
[393516398,1762746643608,-1023.95621657,0.00035981,5]
[393516399,1762746643617,-192400.848914,0.00035994,3]
[393516400,1762746643628,-512.55676061,0.00036003,30]
[393516401,1762746643637,-500.0,0.00036003,7]
[393516402,1762746643646,-500.0,0.00036003,7]
[393516403,1762746643655,-500.0,0.00036003,7]
[393516404,1762746643664,-548.83287299,0.00036003,30]
[393516405,1762746643673,-24546.46062699,0.00036004,3]
[393516411,1762746646542,-1232.00000007,0.00036004,3]
[393516412,1762746646559,-285.1563185,0.00036004,3]
[393516413,1762746646572,-1810.94024361,0.00036004,3]
[393516414,1762746646600,-1954.48602779,0.00036004,3]
[393516415,1762746646615,-10158.11721497,0.00036004,3]
[393516458,1762746988451,932.33,0.00017512,2]
[393516459,1762747002735,-246.1582886,0.00018398,2]
[393516460,1762747004715,-374.96326465,0.00018398,2]
[393516461,1762747006372,-193.32633915,0.00018398,2]
[393516462,1762747062281,-117.8821076,0.00018398,2]
[393516463,1762747062304,-226.11823149,0.00019184,2]
[393516464,1762747234083,-246.67211326,0.00019184,2]
[393516465,1762747235876,-195.0,0.00019234,2]
[393516466,1762747235899,-15.61956548,0.00019234,2]
[393516467,1762747237452,-234.38043452,0.00019234,2]
[393516468,1762747237478,-172.45236463,0.00019284,2]
[393516469,1762747239481,-161.55758847,0.00019284,2]
[393516470,1762747241864,-300.00772377,0.00019284,2]
[393516471,1762747244606,-185.643281,0.00019284,2]
[393516472,1762747276366,1985.157,0.000247,30]
[393516473,1762747598147,-112.66904213,0.00019284,2]
[393516474,1762747598168,-314.02280604,0.00020069,2]
[393516476,1762747759179,-932.33,0.00020169,2]
[393516477,1762747759200,-322.73983,0.00020955,2]
[393516488,1762747831748,-747.61844159,0.00021055,2]
[393516489,1762747831761,-184.71155841,0.00021055,2]
[393516490,1762747831771,-478.82392757,0.00021198,2]
[393516491,1762747831783,-700.17607243,0.00021198,2]
[393516492,1762747831794,-300.0,0.00021198,2]
[393516493,1762747831803,-1200.0,0.00021198,2]
[393516494,1762747831813,-151.0,0.00021199,2]
[393516496,1762747831974,-151.0,0.00021199,2]
[393516498,1762747831984,-151.0,0.00021199,2]
[393516500,1762747831994,-288.55593442,0.00021199,2]
[393516503,1762747832003,-151.0,0.00021199,2]
[393516506,1762747832013,-158.25999202,0.00021199,2]
[393516508,1762747832022,-300.62660903,0.00021212,2]
[393516510,1762747832032,-250.0,0.00021212,2]
[393516512,1762747832044,-2500.0,0.00021212,2]
[393516514,1762747832054,-932.33,0.0002194,2]
[393516516,1762747832064,-250.0,0.00022186,2]
[393516518,1762747832073,-932.33,0.00022826,2]
[393516520,1762747832082,-420.0,0.00023054,2]
[393516522,1762747832093,-1680.0,0.00023163,2]
[393516524,1762747832104,-932.33,0.00023711,2]
[393516526,1762747832113,-202.3909994,0.00024411,2]
[393516528,1762747832123,-932.33,0.00024597,2]
[393516530,1762747832133,-500.0,0.00025073,2]
[393516532,1762747832142,-2107.0,0.00025311,2]
[393516534,1762747832151,-874.0344877,0.00025482,2]
[393516558,1762747837491,-58.2955123,0.00025482,2]
[393516559,1762747837502,-932.33,0.00026368,2]
[393516560,1762747837512,-932.33,0.00027254,2]
[393516561,1762747837521,-812.01903616,0.00028139,2]
[393516595,1762747839532,-120.31096384,0.00028139,2]
[393516597,1762747839542,-932.33,0.00029025,2]
[393516599,1762747839552,-627.70385648,0.0002991,2]